Workbook

Sheet 2019年
A1: 附件
A2: 2019年省中小微企业服务券服务机构兑现资金明细表
A3: 序号 | B3: 服务机构 | C3: 认定 级别 | D3: 订单号 | E3: 被服务企业名称 | F3: 企业所属地区 | G3: 服务类别 | H3: 合同金额（元） | I3: 实际结算金额（元） | J3: 拟兑现金额（元）
A4: 1 | B4: 广东省中小企业发展促进会 | C4: 国家级 | D4: 12880 | E4: 博创智能装备股份有限公司 | F4: 增城区 | G4: 培训服务 | H4: 9800 | I4: 9800 | J4: 4900
A5: 2 | D5: 12025 | E5: 广东同益空气能科技股份有限公司 | F5: 荔湾区 | G5: 培训服务 | H5: 9800 | I5: 9800 | J5: 4900
A6: 3 | D6: 11732 | E6: 广东皓业电气实业有限公司 | F6: 天河区 | G6: 培训服务 | H6: 4000 | I6: 4000 | J6: 2000
A7: 4 | D7: 11705 | E7: 广州金越软件技术有限公司 | F7: 天河区 | G7: 培训服务 | H7: 14000 | I7: 14000 | J7: 7000
A8: 5 | D8: 11960 | E8: 广州金宗机械有限公司 | F8: 番禺区 | G8: 培训服务 | H8: 14000 | I8: 14000 | J8: 7000
A9: 6 | D9: 11962 | E9: 广州金宗机械有限公司 | F9: 番禺区 | G9: 培训服务 | H9: 12000 | I9: 12000 | J9: 6000
A10: 7 | D10: 13984 | E10: 广州科方生物技术股份有限公司 | F10: 黄埔区 | G10: 培训服务 | H10: 19600 | I10: 19600 | J10: 9800
A11: 8 | D11: 13302 | E11: 广州科方生物技术股份有限公司 | F11: 黄埔区 | G11: 培训服务 | H11: 14000 | I11: 14000 | J11: 7000
A12: 9 | D12: 12933 | E12: 广州欧慕生物科技有限公司 | F12: 花都区 | G12: 培训服务 | H12: 14000 | I12: 14000 | J12: 7000
A13: 10 | D13: 12000 | E13: 广州千江企业集团有限公司 | F13: 越秀区 | G13: 培训服务 | H13: 28000 | I13: 28000 | J13: 14000
A14: 11 | D14: 12469 | E14: 广州千江企业集团有限公司 | F14: 越秀区 | G14: 培训服务 | H14: 14000 | I14: 14000 | J14: 6000
A15: 12 | D15: 12710 | E15: 广州瑞立科密汽车电子股份有限公司 | F15: 萝岗区 | G15: 培训服务 | H15: 24000 | I15: 24000 | J15: 12000
A16: 13 | D16: 12680 | E16: 广州市百福电气设备有限公司 | F16: 荔湾区 | G16: 培训服务 | H16: 29400 | I16: 29400 | J16: 13000
A17: 14 | D17: 12681 | E17: 广州市百福电气设备有限公司 | F17: 荔湾区 | G17: 培训服务 | H17: 14000 | I17: 14000 | J17: 7000
A18: 15 | D18: 11880 | E18: 广州市碧莹化妆品有限公司 | F18: 白云区 | G18: 培训服务 | H18: 39200 | I18: 39200 | J18: 19600
A19: 16 | D19: 11862 | E19: 广州市恒星电线氟塑有限公司 | F19: 荔湾区 | G19: 培训服务 | H19: 28000 | I19: 28000 | J19: 14000
A20: 17 | D20: 11913 | E20: 广州市魁地奇信息科技有限公司 | F20: 天河区 | G20: 培训服务 | H20: 42000 | I20: 42000 | J20: 20000
A21: 18 | D21: 12693 | E21: 广州市耐动信息科技有限公司 | F21: 天河区 | G21: 培训服务 | H21: 28000 | I21: 14000 | J21: 7000
A22: 19 | D22: 12753 | E22: 广州市千朵花服装有限公司 | F22: 番禺区 | G22: 培训服务 | H22: 14000 | I22: 14000 | J22: 7000
A23: 20 | D23: 11999 | E23: 广州市千朵花服装有限公司 | F23: 番禺区 | G23: 培训服务 | H23: 14000 | I23: 14000 | J23: 7000
A24: 21 | D24: 13062 | E24: 广州市三宝印刷有限公司 | F24: 黄埔区 | G24: 培训服务 | H24: 14000 | I24: 14000 | J24: 7000
A25: 22 | D25: 11701 | E25: 广州市新之地环保产业股份有限公司 | F25: 荔湾区 | G25: 培训服务 | H25: 28000 | I25: 28000 | J25: 14000
A26: 23 | D26: 12769 | E26: 广州市云端白雁生物科技有限公司 | F26: 花都区 | G26: 培训服务 | H26: 4000 | I26: 4000 | J26: 2000
A27: 24 | D27: 12768 | E27: 广州市云端白雁生物科技有限公司 | F27: 花都区 | G27: 培训服务 | H27: 14000 | I27: 14000 | J27: 7000
A28: 25 | D28: 12100 | E28: 广州市槿泓电子有限公司 | F28: 番禺区 | G28: 培训服务 | H28: 19600 | I28: 19600 | J28: 9800
A29: 26 | D29: 12099 | E29: 广州市槿泓电子有限公司 | F29: 番禺区 | G29: 培训服务 | H29: 4000 | I29: 4000 | J29: 2000
A30: 27 | D30: 12101 | E30: 广州市槿泓电子有限公司 | F30: 番禺区 | G30: 培训服务 | H30: 14000 | I30: 14000 | J30: 7000
A31: 28 | D31: 11583 | E31: 广州先艺电子科技有限公司 | F31: 番禺区 | G31: 培训服务 | H31: 19600 | I31: 19600 | J31: 9800
A32: 29 | D32: 12077 | E32: 广州协鸿工业机器人技术有限公司 | F32: 黄埔区 | G32: 培训服务 | H32: 8000 | I32: 8000 | J32: 4000
A33: 30 | D33: 11711 | E33: 广州泽亨实业有限公司 | F33: 南沙区 | G33: 培训服务 | H33: 14000 | I33: 14000 | J33: 7000
A34: 31 | D34: 12113 | E34: 广州中浩控制技术有限公司 | F34: 越秀区 | G34: 培训服务 | H34: 39200 | I34: 39200 | J34: 19600
A35: 32 | D35: 11611 | E35: 凯通科技股份有限公司 | F35: 萝岗区 | G35: 培训服务 | H35: 42000 | I35: 42000 | J35: 20000
A36: 合计 | D36: 32笔订单 | E36: 23家企业 | H36: =SUM(H4:H35) -> 606200 | I36: =SUM(I4:I35) -> 592200 | J36: =SUM(J3:J35) -> 291400
A37: 1 | B37: 广东博士科技有限公司 | C37: 省级 | D37: 12728 | E37: 广东新空电子科技股份有限公司 | F37: 黄埔区 | G37: 创业创新服务 | H37: 41000 | I37: 41000 | J37: 20000
A38: 2 | D38: 11916 | E38: 广东越安消防科技有限公司 | F38: 荔湾区 | G38: 创业创新服务 | H38: 41000 | I38: 41000 | J38: 20000
A39: 3 | D39: 11878 | E39: 广州导恒信息科技有限公司 | F39: 天河区 | G39: 创业创新服务 | H39: 41000 | I39: 41000 | J39: 20000
A40: 4 | D40: 11897 | E40: 广州点设产品设计有限公司 | F40: 天河区 | G40: 创业创新服务 | H40: 41000 | I40: 41000 | J40: 20000
A41: 5 | D41: 11893 | E41: 广州弓长软件有限公司 | F41: 天河区 | G41: 创业创新服务 | H41: 41000 | I41: 41000 | J41: 20000
A42: 6 | D42: 11984 | E42: 广州韩佳生物科技有限公司 | F42: 天河区 | G42: 创业创新服务 | H42: 41000 | I42: 41000 | J42: 20000
A43: 7 | D43: 11888 | E43: 广州翰培达信息科技有限公司 | F43: 天河区 | G43: 创业创新服务 | H43: 41000 | I43: 41000 | J43: 20000
A44: 8 | D44: 11925 | E44: 广州鸿天数码科技有限公司 | F44: 天河区 | G44: 创业创新服务 | H44: 42200 | I44: 42200 | J44: 20000
A45: 9 | D45: 17915 | E45: 广州华思瑞科信息科技有限公司 | F45: 花都区 | G45: 创业创新服务 | H45: 40200 | I45: 40200 | J45: 20000
A46: 10 | D46: 11910 | E46: 广州九莲尊生物科技有限公司 | F46: 天河区 | G46: 创业创新服务 | H46: 41000 | I46: 41000 | J46: 20000
A47: 11 | D47: 11919 | E47: 广州可信数码科技有限公司 | F47: 天河区 | G47: 创业创新服务 | H47: 42200 | I47: 42200 | J47: 20000
A48: 12 | D48: 11911 | E48: 广州酷翔网络科技有限公司 | F48: 天河区 | G48: 创业创新服务 | H48: 41000 | I48: 41000 | J48: 20000
A49: 13 | D49: 11917 | E49: 广州力脉电子科技有限公司 | F49: 天河区 | G49: 创业创新服务 | H49: 41000 | I49: 41000 | J49: 20000
A50: 14 | D50: 11909 | E50: 广州迈卓舞台灯光设备有限公司 | F50: 白云区 | G50: 创业创新服务 | H50: 42200 | I50: 42200 | J50: 20000
A51: 15 | D51: 11890 | E51: 广州柒色网络科技有限公司 | F51: 花都区 | G51: 创业创新服务 | H51: 41000 | I51: 41000 | J51: 20000
A52: 16 | D52: 11920 | E52: 广州融朋信息科技有限公司 | F52: 海珠区 | G52: 创业创新服务 | H52: 42200 | I52: 42200 | J52: 20000
A53: 17 | D53: 11896 | E53: 广州三乐环保科技有限公司 | F53: 天河区 | G53: 创业创新服务 | H53: 41000 | I53: 41000 | J53: 20000
A54: 18 | D54: 11889 | E54: 广州三民电子科技有限公司 | F54: 黄埔区 | G54: 创业创新服务 | H54: 41000 | I54: 41000 | J54: 20000
A55: 19 | D55: 17916 | E55: 广州市道蓝智能科技有限公司 | F55: 黄埔区 | G55: 创业创新服务 | H55: 41800 | I55: 41800 | J55: 20000
A56: 20 | D56: 11921 | E56: 广州市宏晶电子科技有限公司 | F56: 天河区 | G56: 创业创新服务 | H56: 42200 | I56: 42200 | J56: 20000
A57: 21 | D57: 11912 | E57: 广州市久其科技发展有限公司 | F57: 天河区 | G57: 创业创新服务 | H57: 42200 | I57: 42200 | J57: 20000
A58: 22 | D58: 11914 | E58: 广州市民昇通信工程有限公司 | F58: 海珠区 | G58: 创业创新服务 | H58: 41000 | I58: 41000 | J58: 20000
A59: 23 | D59: 11898 | E59: 广州市新鸣信息技术有限公司 | F59: 天河区 | G59: 创业创新服务 | H59: 41000 | I59: 41000 | J59: 20000
A60: 24 | D60: 11894 | E60: 广州市中诺通讯科技有限公司 | F60: 天河区 | G60: 创业创新服务 | H60: 41000 | I60: 41000 | J60: 20000
A61: 25 | D61: 12724 | E61: 广州溯真生物科技有限公司 | F61: 黄埔区 | G61: 创业创新服务 | H61: 41000 | I61: 41000 | J61: 20000
A62: 26 | D62: 11924 | E62: 广州维立酷得信息技术有限公司 | F62: 黄埔区 | G62: 创业创新服务 | H62: 42200 | I62: 42200 | J62: 20000
A63: 27 | D63: 11901 | E63: 广州希胜科技有限公司 | F63: 天河区 | G63: 创业创新服务 | H63: 41000 | I63: 41000 | J63: 20000
A64: 28 | D64: 11918 | E64: 广州雅馨诺信息科技有限公司 | F64: 天河区 | G64: 创业创新服务 | H64: 41000 | I64: 41000 | J64: 20000
A65: 29 | D65: 11900 | E65: 广州亚先信息科技有限公司 | F65: 天河区 | G65: 创业创新服务 | H65: 41000 | I65: 41000 | J65: 20000
A66: 30 | D66: 11895 | E66: 广州亿贺富信息科技有限公司 | F66: 南沙区 | G66: 创业创新服务 | H66: 41000 | I66: 41000 | J66: 20000
A67: 31 | D67: 12848 | E67: 广州智客云软件有限公司 | F67: 南沙区 | G67: 创业创新服务 | H67: 41000 | I67: 41000 | J67: 20000
A68: 32 | D68: 11908 | E68: 广州智音一号科技有限公司 | F68: 荔湾区 | G68: 创业创新服务 | H68: 41000 | I68: 41000 | J68: 20000
A69: 33 | D69: 12504 | E69: 骊阳（广东）节能科技股份有限公司 | F69: 黄埔区 | G69: 创业创新服务 | H69: 41000 | I69: 41000 | J69: 20000
A70: 34 | D70: 12742 | E70: 广州市博诺通化工技术服务有限公司 | F70: 黄埔区 | G70: 创业创新服务 | H70: 40800 | I70: 40800 | J70: 20000
A71: 35 | D71: 12516 | E71: 广州市粤峰高新技术股份有限公司 | F71: 天河区 | G71: 创业创新服务 | H71: 21600 | I71: 21600 | J71: 10800
A72: 36 | D72: 12520 | E72: 广州紫麦科技有限公司 | F72: 天河区 | G72: 创业创新服务 | H72: 46600 | I72: 46600 | J72: 20000
A73: 37 | D73: 12743 | E73: 南泽（广东）科技股份有限公司 | F73: 黄埔区 | G73: 创业创新服务 | H73: 40200 | I73: 40200 | J73: 20000
A74: 合计 | D74: 37笔订单 | E74: 37家企业 | H74: =SUM(H37:H73) -> 1510600 | I74: =SUM(I37:I73) -> 1510600 | J74: 730800
A75: 1 | B75: 广东环球经纬律师事务所 | C75: 省级 | D75: 17858 | E75: 广东埃森环保科技有限公司 | F75: 天河区 | G75: 法律服务 | H75: 40000 | I75: 40000 | J75: 20000
A76: 2 | D76: 17470 | E76: 广州建宇机电安装工程有限公司 | F76: 天河区 | G76: 法律服务 | H76: 40000 | I76: 40000 | J76: 20000
A77: 3 | D77: 11849 | E77: 广州丽芳园林生态科技股份有限公司 | F77: 荔湾区 | G77: 法律服务 | H77: 35000 | I77: 28000 | J77: 14000
A78: 4 | D78: 17551 | E78: 广州善昊企业管理咨询有限公司 | F78: 荔湾区 | G78: 法律服务 | H78: 40000 | I78: 40000 | J78: 13333
A79: 5 | D79: 12133 | E79: 广州市莱智广告有限公司 | F79: 越秀区 | G79: 法律服务 | H79: 40000 | I79: 40000 | J79: 20000
A80: 6 | D80: 11550 | E80: 广州四方传媒股份有限公司 | F80: 越秀区 | G80: 法律服务 | H80: 45000 | I80: 45000 | J80: 20000
A81: 合计 | D81: 6笔订单 | E81: 6家企业 | H81: =SUM(H75:H80) -> 240000 | I81: =SUM(I75:I80) -> 233000 | J81: 107333
A82: 1 | B82: 广东企盟工业设计有限公司 | C82: 省级 | D82: 12116 | E82: 广州创富梦工厂生物科技有限公司 | F82: 天河区 | G82: 技术服务 | H82: 43000 | I82: 43000 | J82: 20000
A83: 2 | D83: 13525 | E83: 广州锦高信息科技有限公司 | F83: 白云区 | G83: 技术服务 | H83: 44000 | I83: 44000 | J83: 20000
A84: 3 | D84: 17541 | E84: 广州锦祥信息科技有限公司 | F84: 白云区 | G84: 技术服务 | H84: 42000 | I84: 42000 | J84: 20000
A85: 4 | D85: 12395 | E85: 广州南越影视制作有限公司 | F85: 海珠区 | G85: 技术服务 | H85: 41000 | I85: 41000 | J85: 20000
A86: 5 | D86: 12117 | E86: 广州天亨贸易有限公司 | F86: 天河区 | G86: 技术服务 | H86: 42000 | I86: 42000 | J86: 20000
A87: 6 | D87: 17355 | E87: 广州向隆贸易有限公司 | F87: 越秀区 | G87: 技术服务 | H87: 42000 | I87: 42000 | J87: 20000
A88: 7 | D88: 12150 | E88: 广州域林服装有限公司 | F88: 越秀区 | G88: 技术服务 | H88: 41000 | I88: 41000 | J88: 20000
A89: 8 | D89: 12146 | E89: 广州炜乔科技有限公司 | F89: 天河区 | G89: 技术服务 | H89: 42000 | I89: 42000 | J89: 20000
A90: 合计 | D90: 8笔订单 | E90: 8家企业 | H90: =SUM(H82:H89) -> 337000 | I90: =SUM(I82:I89) -> 337000 | J90: 160000
A91: 1 | B91: 广东省企业管理咨询协会 | C91: 省级 | D91: 18308 | E91: 广东微谷投资股份有限公司 | F91: 天河区 | G91: 管理咨询服务 | H91: 40600 | I91: 40600 | J91: 20000
A92: 2 | D92: 18244 | E92: 广东元韬企业管理咨询有限公司 | F92: 天河区 | G92: 管理咨询服务 | H92: 50000 | I92: 50000 | J92: 20000
A93: 3 | D93: 12278 | E93: 广东粤孵产业大数据研究有限公司 | F93: 天河区 | G93: 管理咨询服务 | H93: 40500 | I93: 40500 | J93: 20000
A94: 4 | D94: 11794 | E94: 广州百恩居实业有限公司 | F94: 花都区 | G94: 管理咨询服务 | H94: 40000 | I94: 40000 | J94: 20000
A95: 5 | D95: 18619 | E95: 广州背嵬广告有限公司 | F95: 白云区 | G95: 管理咨询服务 | H95: 40000 | I95: 40000 | J95: 20000
A96: 6 | D96: 11714 | E96: 广州倍丰信息技术有限公司 | F96: 天河区 | G96: 管理咨询服务 | H96: 40800 | I96: 40800 | J96: 20000
A97: 7 | D97: 11793 | E97: 广州本体工业设计有限公司 | F97: 白云区 | G97: 管理咨询服务 | H97: 41000 | I97: 41000 | J97: 20000
A98: 8 | D98: 17103 | E98: 广州彩纳索企业管理咨询有限公司 | F98: 天河区 | G98: 管理咨询服务 | H98: 40098 | I98: 40098 | J98: 19998
A99: 9 | D99: 18630 | E99: 广州藏知品牌管理有限公司 | F99: 天河区 | G99: 管理咨询服务 | H99: 42000 | I99: 42000 | J99: 20000
A100: 10 | D100: 11719 | E100: 广州潮妈有孕服饰有限公司 | F100: 海珠区 | G100: 管理咨询服务 | H100: 41600 | I100: 41600 | J100: 20000
A101: 11 | D101: 11715 | E101: 广州创风信息科技有限公司 | F101: 天河区 | G101: 管理咨询服务 | H101: 40800 | I101: 40800 | J101: 20000
A102: 12 | D102: 11720 | E102: 广州创行家网络科技有限公司 | F102: 天河区 | G102: 管理咨询服务 | H102: 40000 | I102: 40000 | J102: 20000
A103: 13 | D103: 11780 | E103: 广州迪酷贸易有限公司 | F103: 南沙区 | G103: 管理咨询服务 | H103: 41600 | I103: 41600 | J103: 20000
A104: 14 | D104: 11787 | E104: 广州哈瑞进出口有限公司 | F104: 越秀区 | G104: 管理咨询服务 | H104: 42000 | I104: 42000 | J104: 20000
A105: 15 | D105: 11789 | E105: 广州好门锁锁业有限公司 | F105: 番禺区 | G105: 管理咨询服务 | H105: 40500 | I105: 40500 | J105: 20000
A106: 16 | D106: 11795 | E106: 广州好俪红国际贸易有限公司 | F106: 南沙区 | G106: 管理咨询服务 | H106: 40600 | I106: 40600 | J106: 20000
A107: 17 | D107: 11859 | E107: 广州汇居置业房地产代理有限公司 | F107: 番禺区 | G107: 管理咨询服务 | H107: 41000 | I107: 41000 | J107: 20000
A108: 18 | D108: 17099 | E108: 广州火田环保设备工程有限公司 | F108: 白云区 | G108: 管理咨询服务 | H108: 40150 | I108: 40150 | J108: 20000
A109: 19 | D109: 11860 | E109: 广州聚好房网络科技有限公司 | F109: 番禺区 | G109: 管理咨询服务 | H109: 40000 | I109: 40000 | J109: 20000
A110: 20 | D110: 18655 | E110: 广州开心人力资源有限公司 | F110: 天河区 | G110: 管理咨询服务 | H110: 45000 | I110: 45000 | J110: 20000
A111: 21 | D111: 18242 | E111: 广州乐霸网络科技有限公司 | F111: 天河区 | G111: 管理咨询服务 | H111: 40300 | I111: 40300 | J111: 20000
A112: 22 | D112: 11723 | E112: 广州立华财务顾问有限公司 | F112: 天河区 | G112: 管理咨询服务 | H112: 40500 | I112: 40500 | J112: 20000
A113: 23 | D113: 11722 | E113: 广州立华云信息技术有限公司 | F113: 天河区 | G113: 管理咨询服务 | H113: 43000 | I113: 43000 | J113: 20000
A114: 24 | D114: 11784 | E114: 广州骑酷轮智能科技有限公司 | F114: 天河区 | G114: 管理咨询服务 | H114: 41500 | I114: 41500 | J114: 20000
A115: 25 | D115: 11858 | E115: 广州三闪特科仪器有限公司 | F115: 天河区 | G115: 管理咨询服务 | H115: 41000 | I115: 41000 | J115: 20000
A116: 26 | D116: 18219 | E116: 广州市傲博产业创新服务股份有限公司 | F116: 黄埔区 | G116: 管理咨询服务 | H116: 40000 | I116: 40000 | J116: 20000
A117: 27 | D117: 17102 | E117: 广州市创洁美环卫清洁服务有限公司 | F117: 番禺区 | G117: 管理咨询服务 | H117: 40300 | I117: 40300 | J117: 20000
A118: 28 | D118: 17101 | E118: 广州市番禺区石基镇美洁环卫综合处理厂 | F118: 番禺区 | G118: 管理咨询服务 | H118: 40250 | I118: 40250 | J118: 20000
A119: 29 | D119: 12494 | E119: 广州市国科禾路信息科技有限公司 | F119: 越秀区 | G119: 管理咨询服务 | H119: 20000 | I119: 20000 | J119: 10000
A120: 30 | D120: 17107 | E120: 广州市蓝居环保科技有限公司 | F120: 天河区 | G120: 管理咨询服务 | H120: 40330 | I120: 40330 | J120: 20000
A121: 31 | D121: 18618 | E121: 广州市丽彩印务有限公司 | F121: 南沙区 | G121: 管理咨询服务 | H121: 40000 | I121: 40000 | J121: 20000
A122: 32 | D122: 12281 | E122: 广州市仁沃科技有限公司 | F122: 天河区 | G122: 管理咨询服务 | H122: 40880 | I122: 40880 | J122: 20000
A123: 33 | D123: 17104 | E123: 广州拓立节能科技有限公司 | F123: 黄埔区 | G123: 管理咨询服务 | H123: 40300 | I123: 40300 | J123: 20000
A124: 34 | D124: 17106 | E124: 广州星期一服装有限公司 | F124: 天河区 | G124: 管理咨询服务 | H124: 40330 | I124: 40330 | J124: 20000
A125: 35 | D125: 11791 | E125: 广州瑶创软件科技有限公司 | F125: 南沙区 | G125: 管理咨询服务 | H125: 41000 | I125: 41000 | J125: 20000
A126: 36 | D126: 11712 | E126: 广州耀海电气机械有限公司 | F126: 南沙区 | G126: 管理咨询服务 | H126: 40600 | I126: 40600 | J126: 20000
A127: 37 | D127: 18061 | E127: 广州咏众企业管理咨询有限公司 | F127: 南沙区 | G127: 管理咨询服务 | H127: 40000 | I127: 40000 | J127: 20000
A128: 38 | D128: 11782 | E128: 广州振先办公用品有限公司 | F128: 南沙区 | G128: 管理咨询服务 | H128: 42000 | I128: 42000 | J128: 20000
A129: 39 | D129: 11792 | E129: 广州卓帆文化传播有限公司 | F129: 南沙区 | G129: 管理咨询服务 | H129: 42000 | I129: 42000 | J129: 20000
A130: 40 | D130: 18620 | E130: 广州宸创科技有限公司 | F130: 海珠区 | G130: 管理咨询服务 | H130: 40000 | I130: 40000 | J130: 20000
A131: 41 | D131: 11790 | E131: 广州琚汇房地产有限公司 | F131: 海珠区 | G131: 管理咨询服务 | H131: 43000 | I131: 43000 | J131: 20000
A132: 42 | D132: 17105 | E132: 力博特电源科技（广州）有限公司 | F132: 荔湾区 | G132: 管理咨询服务 | H132: 40346 | I132: 40346 | J132: 19996
A133: 合计 | D133: 42笔订单 | E133: 42家企业 | H133: =SUM(H91:H132) -> 1705884 | I133: =SUM(I91:I132) -> 1705884 | J133: 829994
A134: 1 | B134: 广州慧得企业管理咨询有限公司 | C134: 省级 | D134: 17603 | E134: 广州笔打目品牌策划有限公司 | F134: 海珠区 | G134: 财税服务 | H134: 24850 | I134: 24850 | J134: 12100
A135: 2 | D135: 17602 | E135: 广州笔打目品牌策划有限公司 | F135: 海珠区 | G135: 财税服务 | H135: 15800 | I135: 15800 | J135: 7900
A136: 3 | D136: 11845 | E136: 广州迪盟文化传媒有限公司 | F136: 番禺区 | G136: 财税服务 | H136: 13800 | I136: 13800 | J136: 6900
A137: 4 | D137: 11846 | E137: 广州迪盟文化传媒有限公司 | F137: 番禺区 | G137: 财税服务 | H137: 24850 | I137: 24850 | J137: 12425
A138: 5 | D138: 13738 | E138: 广州烽火众智数字技术有限公司 | F138: 萝岗区 | G138: 财税服务 | H138: 40000 | I138: 40000 | J138: 20000
A139: 6 | D139: 12812 | E139: 广州豪晴装饰工程有限公司 | F139: 番禺区 | G139: 财税服务 | H139: 10560 | I139: 10560 | J139: 5280
A140: 7 | D140: 12813 | E140: 广州豪晴装饰工程有限公司 | F140: 番禺区 | G140: 财税服务 | H140: 29800 | I140: 29800 | J140: 14720
A141: 8 | D141: 18541 | E141: 广州汇金企业咨询服务有限公司 | F141: 南沙区 | G141: 财税服务 | H141: 10560 | I141: 10560 | J141: 5280
A142: 9 | D142: 18542 | E142: 广州汇金企业咨询服务有限公司 | F142: 南沙区 | G142: 财税服务 | H142: 29800 | I142: 29800 | J142: 14720
A143: 10 | D143: 17595 | E143: 广州吉立科技有限公司 | F143: 番禺区 | G143: 财税服务 | H143: 29800 | I143: 29800 | J143: 14720
A144: 11 | D144: 17594 | E144: 广州吉立科技有限公司 | F144: 番禺区 | G144: 财税服务 | H144: 10560 | I144: 10560 | J144: 5280
A145: 12 | D145: 17598 | E145: 广州今日会展有限公司 | F145: 番禺区 | G145: 财税服务 | H145: 10560 | I145: 10560 | J145: 5280
A146: 13 | D146: 17599 | E146: 广州今日会展有限公司 | F146: 番禺区 | G146: 财税服务 | H146: 29800 | I146: 29800 | J146: 14720
A147: 14 | D147: 11841 | E147: 广州晋泰纸业有限公司 | F147: 海珠区 | G147: 财税服务 | H147: 13800 | I147: 13800 | J147: 6900
A148: 15 | D148: 11842 | E148: 广州晋泰纸业有限公司 | F148: 海珠区 | G148: 财税服务 | H148: 24850 | I148: 24850 | J148: 12425
A149: 16 | D149: 17389 | E149: 广州君创机电设备有限公司 | F149: 黄埔区 | G149: 财税服务 | H149: 39800 | I149: 39800 | J149: 19900
A150: 17 | D150: 17589 | E150: 广州立行教育咨询有限公司 | F150: 番禺区 | G150: 财税服务 | H150: 29800 | I150: 29800 | J150: 14720
A151: 18 | D151: 17588 | E151: 广州立行教育咨询有限公司 | F151: 番禺区 | G151: 财税服务 | H151: 10560 | I151: 10560 | J151: 5280
A152: 19 | D152: 14664 | E152: 广州领就网络科技有限公司 | F152: 天河区 | G152: 财税服务 | H152: 13800 | I152: 13800 | J152: 6751
A153: 20 | D153: 12822 | E153: 广州铭克数码科技有限公司 | F153: 番禺区 | G153: 财税服务 | H153: 19800 | I153: 19800 | J153: 9900
A154: 21 | D154: 12821 | E154: 广州铭克数码科技有限公司 | F154: 番禺区 | G154: 财税服务 | H154: 20160 | I154: 20160 | J154: 10080
A155: 22 | D155: 11844 | E155: 广州清介居文化传播有限公司 | F155: 番禺区 | G155: 财税服务 | H155: 24850 | I155: 24850 | J155: 12425
A156: 23 | D156: 11843 | E156: 广州清介居文化传播有限公司 | F156: 番禺区 | G156: 财税服务 | H156: 13800 | I156: 13800 | J156: 6900
A157: 24 | D157: 13720 | E157: 广州市番鸿汽车检测有限公司 | F157: 番禺区 | G157: 财税服务 | H157: 10560 | I157: 10560 | J157: 5280
A158: 25 | D158: 13719 | E158: 广州市番鸿汽车检测有限公司 | F158: 番禺区 | G158: 财税服务 | H158: 29800 | I158: 29800 | J158: 14720
A159: 26 | D159: 17597 | E159: 广州市番通汽车检测有限公司 | F159: 番禺区 | G159: 财税服务 | H159: 19800 | I159: 19800 | J159: 9900
A160: 27 | D160: 17596 | E160: 广州市番通汽车检测有限公司 | F160: 番禺区 | G160: 财税服务 | H160: 20160 | I160: 20160 | J160: 10080
A161: 28 | D161: 17580 | E161: 广州市建宇商务服务有限公司 | F161: 白云区 | G161: 财税服务 | H161: 10560 | I161: 10560 | J161: 5280
A162: 29 | D162: 17581 | E162: 广州市建宇商务服务有限公司 | F162: 白云区 | G162: 财税服务 | H162: 29800 | I162: 29800 | J162: 14720
A163: 30 | D163: 17582 | E163: 广州市久玖赢企业管理咨询有限公司 | F163: 番禺区 | G163: 财税服务 | H163: 15800 | I163: 15800 | J163: 7900
A164: 31 | D164: 17583 | E164: 广州市久玖赢企业管理咨询有限公司 | F164: 番禺区 | G164: 财税服务 | H164: 24850 | I164: 24850 | J164: 12100
A165: 32 | D165: 17586 | E165: 广州市尚艺服装有限公司 | F165: 南沙区 | G165: 财税服务 | H165: 10560 | I165: 10560 | J165: 5280
A166: 33 | D166: 17587 | E166: 广州市尚艺服装有限公司 | F166: 南沙区 | G166: 财税服务 | H166: 29800 | I166: 29800 | J166: 14720
A167: 34 | D167: 12815 | E167: 广州市守顺机械设备有限责任公司 | F167: 番禺区 | G167: 财税服务 | H167: 19800 | I167: 19800 | J167: 9900
A168: 35 | D168: 12814 | E168: 广州市守顺机械设备有限责任公司 | F168: 番禺区 | G168: 财税服务 | H168: 20160 | I168: 20160 | J168: 10080
A169: 36 | D169: 11848 | E169: 广州市亿达投资发展有限公司 | F169: 番禺区 | G169: 财税服务 | H169: 24850 | I169: 24850 | J169: 12425
A170: 37 | D170: 11847 | E170: 广州市亿达投资发展有限公司 | F170: 番禺区 | G170: 财税服务 | H170: 13800 | I170: 13800 | J170: 6900
A171: 38 | D171: 17601 | E171: 广州汤沐昇贸易有限公司 | F171: 天河区 | G171: 财税服务 | H171: 29800 | I171: 29800 | J171: 14720
A172: 39 | D172: 17600 | E172: 广州汤沐昇贸易有限公司 | F172: 天河区 | G172: 财税服务 | H172: 10560 | I172: 10560 | J172: 5280
A173: 40 | D173: 12820 | E173: 广州天沐点策文化传播有限公司 | F173: 越秀区 | G173: 财税服务 | H173: 19800 | I173: 19800 | J173: 9900
A174: 41 | D174: 12818 | E174: 广州天沐点策文化传播有限公司 | F174: 越秀区 | G174: 财税服务 | H174: 20160 | I174: 20160 | J174: 10080
A175: 42 | D175: 17585 | E175: 广州同楼分众科技有限公司 | F175: 越秀区 | G175: 财税服务 | H175: 29800 | I175: 29800 | J175: 14720
A176: 43 | D176: 17584 | E176: 广州同楼分众科技有限公司 | F176: 越秀区 | G176: 财税服务 | H176: 10560 | I176: 10560 | J176: 5280
A177: 44 | D177: 12823 | E177: 广州托龙机电有限公司 | F177: 番禺区 | G177: 财税服务 | H177: 20160 | I177: 20160 | J177: 10080
A178: 45 | D178: 12824 | E178: 广州托龙机电有限公司 | F178: 番禺区 | G178: 财税服务 | H178: 19800 | I178: 19800 | J178: 9900
A179: 46 | D179: 17592 | E179: 广州文衡信息技术有限公司 | F179: 天河区 | G179: 财税服务 | H179: 10560 | I179: 10560 | J179: 5280
A180: 47 | D180: 17593 | E180: 广州文衡信息技术有限公司 | F180: 天河区 | G180: 财税服务 | H180: 29800 | I180: 29800 | J180: 14720
A181: 48 | D181: 17579 | E181: 广州星康信息科技有限公司 | F181: 天河区 | G181: 财税服务 | H181: 40000 | I181: 40000 | J181: 20000
A182: 49 | D182: 11709 | E182: 广州星荟教育科技有限公司 | F182: 番禺区 | G182: 财税服务 | H182: 24850 | I182: 24850 | J182: 12425
A183: 50 | D183: 11708 | E183: 广州星荟教育科技有限公司 | F183: 番禺区 | G183: 财税服务 | H183: 13800 | I183: 13800 | J183: 6900
A184: 51 | D184: 12832 | E184: 广州夜鹰照明有限公司 | F184: 白云区 | G184: 财税服务 | H184: 20160 | I184: 20160 | J184: 10080
A185: 52 | D185: 12833 | E185: 广州夜鹰照明有限公司 | F185: 白云区 | G185: 财税服务 | H185: 19800 | I185: 19800 | J185: 9900
A186: 53 | D186: 12817 | E186: 广州证阳科技有限公司 | F186: 番禺区 | G186: 财税服务 | H186: 19800 | I186: 19800 | J186: 9900
A187: 54 | D187: 12816 | E187: 广州证阳科技有限公司 | F187: 番禺区 | G187: 财税服务 | H187: 20160 | I187: 20160 | J187: 10080
A188: 55 | D188: 13687 | E188: 广州中卡智能科技有限公司 | F188: 天河区 | G188: 财税服务 | H188: 39800 | I188: 27200 | J188: 13600
A189: 56 | D189: 11825 | E189: 广州恺胜晓天贸易有限公司 | F189: 番禺区 | G189: 财税服务 | H189: 24850 | I189: 24850 | J189: 12100
A190: 57 | D190: 11824 | E190: 广州恺胜晓天贸易有限公司 | F190: 番禺区 | G190: 财税服务 | H190: 15800 | I190: 15800 | J190: 7900
A191: 58 | D191: 17604 | E191: 广州睿建企业管理咨询有限公司 | F191: 番禺区 | G191: 财税服务 | H191: 10560 | I191: 10560 | J191: 5280
A192: 59 | D192: 17605 | E192: 广州睿建企业管理咨询有限公司 | F192: 番禺区 | G192: 财税服务 | H192: 29800 | I192: 29800 | J192: 14720
A193: 60 | D193: 11632 | E193: 广州翎御企业管理顾问有限公司 | F193: 天河区 | G193: 财税服务 | H193: 39800 | I193: 39800 | J193: 19900
A194: 61 | D194: 11835 | E194: 美誉华凯（广州）信息科技有限公司 | F194: 番禺区 | G194: 财税服务 | H194: 24850 | I194: 24850 | J194: 12425
A195: 62 | D195: 11834 | E195: 美誉华凯（广州）信息科技有限公司 | F195: 番禺区 | G195: 财税服务 | H195: 13800 | I195: 13800 | J195: 6900
A196: 63 | D196: 11830 | E196: 润泽生物科技（广州）有限公司 | F196: 白云区 | G196: 财税服务 | H196: 14800 | I196: 14800 | J196: 7400
A197: 64 | D197: 11831 | E197: 润泽生物科技（广州）有限公司 | F197: 白云区 | G197: 财税服务 | H197: 24850 | I197: 24850 | J197: 12425
A198: 合计 | D198: 64笔订单 | E198: 33家企业 | H198: =SUM(H134:H197) -> 1370740 | I198: =SUM(I134:I197) -> 1358140 | J198: 675786
A199: 1 | B199: 广州金安源企业管理咨询服务有限公司 | C199: 省级 | D199: 17436 | E199: 广东标美硅氟新材料有限公司 | F199: 增城区 | G199: 技术服务 | H199: 45000 | I199: 45000 | J199: 20000
A200: 2 | D200: 11840 | E200: 广东欧亚制冷设备制造有限公司 | F200: 黄埔区 | G200: 创业创新服务 | H200: 41000 | I200: 41000 | J200: 20000
... 191 more rows
